bitfinex/quotes_ETHUSD_20251110
["timestamp","ask_amount","ask_price","bid_price","bid_amount"]
[1762777119463,0.001,3592.1,3592.0,2.32041079]
[1762777120099,0.001,3592.1,3592.0,7.38012279]
[1762777120267,0.001,3592.1,3592.0,7.35228315]
[1762777121685,0.001,3592.1,3592.0,6.48967915]
[1762777122013,0.001,3592.1,3592.0,6.94677915]
[1762777122526,0.001,3592.1,3592.0,2.201212]
[1762777124027,0.001,3592.1,3592.0,1.744112]
[1762777124413,0.001,3592.1,3591.7,0.4571]
[1762777124828,0.001,3592.1,3592.0,0.4844]
[1762777125808,0.001,3592.1,3592.0,0.9415]
[1762777127993,0.001,3592.1,3592.0,1.347004]
[1762777128233,0.001,3592.1,3592.0,1.90978703]
[1762777128234,0.0002,3592.1,3592.0,1.90978703]
[1762777128598,0.0002,3592.1,3592.0,1.347004]
[1762777129039,0.0002,3592.1,3592.0,0.9415]
[1762777129901,0.0002,3592.1,3592.0,1.347004]
[1762777134433,0.0002,3592.1,3592.0,9.01331892]
[1762777135747,0.0002,3592.1,3592.0,8.18668375]
[1762777136837,0.0002,3592.1,3592.0,8.07530084]
[1762777141103,0.001,3592.5,3592.4,5.465016]
[1762777141335,0.001,3593.0,3592.5,2.06932072]
[1762777141534,0.001,3593.0,3592.9,0.860004]
[1762777141844,0.001,3593.0,3592.9,0.88783666]
[1762777142045,0.001,3593.0,3592.9,1.75824138]
[1762777142457,0.001,3593.0,3592.9,7.32660738]
[1762777143630,0.001,3593.0,3592.9,3.00846312]
[1762777143833,0.001,3593.0,3592.9,4.87753001]
[1762777146474,0.001,3593.0,3592.9,1.69237089]
[1762777147649,0.001,3593.0,3592.9,6.79188289]
[1762777147970,0.001,3593.0,3592.9,7.21433001]
[1762777148579,0.001,3593.0,3592.9,7.51671673]
[1762777148871,0.001,3593.0,3592.9,7.62807638]
[1762777152246,0.0002,3593.0,3592.9,7.62807638]
[1762777156042,0.0002,3593.0,3592.9,9.13107638]
[1762777157889,0.0002,3593.0,3592.9,5.92007889]
[1762777158097,0.0002,3593.0,3592.9,7.21419484]
[1762777158281,0.0002,3593.0,3592.9,6.74789484]
[1762777158901,0.0002,3593.0,3592.9,6.32558289]
[1762777160878,0.0002,3593.0,3592.9,6.74789484]
[1762777161478,0.0002,3593.0,3592.9,6.79188289]
[1762777161821,0.0002,3593.0,3592.9,7.21419484]
[1762777162121,0.0002,3593.0,3592.9,7.59066489]
[1762777162879,0.0002,3593.0,3592.9,7.12436489]
[1762777164026,0.0002,3593.0,3592.9,7.59066489]
[1762777164589,0.0002,3593.0,3592.9,6.33095289]
[1762777165202,0.0002,3593.3,3593.1,0.405504]
[1762777165407,0.0002,3593.3,3593.2,6.13140831]
[1762777165905,0.0002,3593.3,3593.2,7.9597719]
[1762777168919,0.0002,3593.3,3593.2,4.9400237]
[1762777169524,0.0002,3593.3,3593.2,4.5345197]
[1762777170510,0.0002,3593.3,3593.2,4.9400237]
[1762777171102,0.001,3593.7,3593.6,5.097112]
[1762777171447,0.001,3593.7,3593.6,7.09602868]
[1762777172548,0.001,3593.7,3593.6,7.55332868]
[1762777173351,0.001,3593.7,3593.6,7.95883268]
[1762777176031,0.001,3593.7,3593.6,8.07017436]
[1762777176232,0.0002,3593.7,3593.6,8.07017436]
[1762777176962,0.0002,3594.1,3593.7,5.87203793]
[1762777177153,0.0002,3594.1,3593.7,7.96243537]
[1762777177334,0.0002,3594.1,3593.7,8.31379883]
[1762777177653,0.0002,3594.1,3593.7,8.88244051]
[1762777177859,0.0002,3594.1,3593.7,8.42514051]
[1762777178154,0.0002,3594.1,3593.7,8.88244051]
[1762777179772,0.0002,3594.1,3593.7,9.92714051]
[1762777179977,0.0002,3594.1,3593.7,10.38444051]
[1762777182970,0.0002,3594.1,3593.7,10.01481858]
[1762777183153,0.0002,3594.1,3593.7,10.38229499]
[1762777183353,0.0002,3594.1,3593.7,10.01481858]
[1762777188673,0.0002,3594.1,3593.7,8.51281858]
[1762777188986,0.0002,3594.1,3593.7,8.41162114]
[1762777190894,0.2133,3593.8,3593.7,7.11575768]
[1762777191395,0.001,3593.8,3593.7,7.11575768]
[1762777191803,0.2133,3593.8,3593.7,5.61375768]
[1762777192166,0.2133,3593.8,3593.7,5.502416]
[1762777192786,0.4256,3593.8,3593.7,5.502416]
[1762777193501,0.4256,3593.8,3593.7,5.096912]
[1762777193858,0.4256,3593.8,3593.3,0.405504]
[1762777194070,0.2133,3593.8,3593.3,0.405504]
[1762777194270,0.2123,3593.4,3593.3,0.405504]
[1762777195382,0.001,3593.8,3593.3,0.405504]
[1762777195706,0.2133,3593.8,3593.3,0.405504]
[1762777195910,0.2133,3593.8,3593.1,0.405504]
[1762777195911,0.2123,3593.4,3593.1,0.405504]
[1762777196208,0.1547,3593.3,3593.1,0.405504]
[1762777196509,0.1547,3593.3,3593.2,0.65450609]
[1762777196711,0.1547,3593.3,3593.2,0.405504]
[1762777197591,0.2123,3593.7,3593.3,0.405504]
[1762777198421,0.2123,3593.4,3593.1,0.405504]
[1762777198779,0.2123,3593.4,3593.1,0.617804]
[1762777199820,0.1547,3593.2,3593.1,0.617804]
[1762777200185,0.1539,3593.2,3593.1,0.617804]
[1762777200386,0.1539,3593.2,3593.1,0.9559556]
[1762777200708,0.1539,3593.2,3593.1,0.617804]
[1762777200907,0.3654,3593.2,3592.9,0.002]
[1762777201079,0.2115,3593.0,3592.9,0.002]
[1762777201289,0.2115,3593.0,3592.9,0.407504]
[1762777201700,0.2115,3593.0,3592.9,0.002]
[1762777202098,0.423,3593.0,3592.9,0.002]
[1762777202295,0.001,3593.8,3592.9,0.002]
[1762777202296,0.2115,3593.6,3592.9,0.002]
[1762777202600,0.001,3593.8,3593.0,1.57457254]
[1762777202811,0.001,3593.8,3593.2,0.405504]
[1762777202992,0.001,3593.8,3593.3,0.75528842]
[1762777203197,0.2115,3593.3,3593.1,0.405504]
[1762777203407,0.001,3593.8,3593.1,2.06426621]
[1762777203636,0.001,3593.8,3593.2,0.39905021]
[1762777204133,0.2115,3593.3,3593.2,0.80455421]
[1762777204336,0.2115,3593.3,3593.2,0.405504]
[1762777204540,0.2115,3593.3,3593.0,0.83522767]
[1762777204713,3.44935679,3593.1,3592.9,0.002]
[1762777205039,0.2109,3593.0,3592.9,0.002]
[1762777205295,3.20558953,3593.0,3592.9,0.002]
[1762777205426,3.46304597,3593.0,3592.9,0.002]
[1762777205636,2.78347446,3592.7,3592.1,0.002]
[1762777205943,0.156,3592.6,3592.1,0.002]
[1762777206452,0.3675,3592.6,3592.1,0.002]
[1762777206905,6.4448562,3592.6,3592.1,0.002]
[1762777207503,3.66135679,3592.6,3592.1,0.002]
[1762777209538,3.15099941,3592.6,3592.5,0.002]
[1762777210122,6.4448562,3592.6,3592.5,0.002]
[1762777210652,0.156,3592.6,3592.5,0.002]
[1762777211318,0.3675,3592.6,3592.5,0.002]
[1762777214268,0.156,3592.6,3592.5,0.002]
[1762777214950,2.78423867,3593.0,3592.5,0.002]
[1762777215155,0.001,3593.0,3592.5,0.002]
[1762777215561,2.99569544,3593.0,3592.5,0.002]
[1762777215877,0.2115,3592.6,3592.5,0.002]
[1762777216073,0.2125,3593.0,3592.5,0.002]
[1762777216276,0.001,3593.0,3592.5,0.4699]
[1762777216741,2.78423119,3593.0,3592.5,0.4699]
[1762777217075,2.78331951,3592.9,3592.5,0.002]
[1762777217475,0.2115,3592.6,3592.5,0.002]
[1762777217854,0.423,3592.6,3592.5,0.002]
[1762777218171,3.20649941,3592.6,3592.5,0.002]
[1762777218475,0.2115,3592.6,3592.5,0.002]
[1762777219643,2.99499941,3592.6,3592.5,0.002]
[1762777220087,0.423,3592.6,3592.5,0.002]
[1762777220404,0.2115,3592.6,3592.5,0.002]
[1762777220623,0.001,3593.0,3592.5,0.4699]
[1762777220775,0.001,3593.0,3592.5,1.41158568]
[1762777221319,0.001,3593.0,3592.6,0.4971]
[1762777222104,0.001,3593.0,3592.9,0.4679]
[1762777223511,0.001,3593.0,3592.9,0.86695021]
[1762777223811,0.001,3593.0,3592.9,0.873404]
[1762777223983,0.001,3593.0,3592.9,0.659366]
[1762777224190,0.001,3593.0,3592.9,0.405504]
[1762777224191,0.0002,3593.0,3592.9,0.405504]
[1762777224387,0.2117,3593.0,3592.9,0.405504]
[1762777225378,0.0002,3593.0,3592.9,1.332604]
[1762777226786,0.0002,3593.0,3592.9,0.856704]
[1762777226991,0.2117,3593.0,3592.7,0.8353207]
[1762777227332,0.2117,3593.0,3592.6,0.405504]
[1762777227477,0.2117,3593.0,3592.7,0.23550897]
[1762777228114,0.0002,3593.0,3592.7,0.23550897]
[1762777228481,0.0002,3593.0,3592.7,0.71140897]
[1762777229328,0.0002,3593.0,3592.7,0.23550897]
[1762777229826,0.0002,3593.0,3592.9,0.856704]
[1762777230011,0.0002,3593.0,3592.9,1.18282024]
[1762777230609,0.0002,3593.0,3592.9,0.73162024]
[1762777231760,0.0002,3593.0,3592.9,1.65872024]
[1762777231966,0.0002,3593.0,3592.9,2.05777045]
[1762777232172,0.0002,3593.0,3592.9,1.65872024]
[1762777232639,0.2117,3593.0,3592.9,0.73162024]
[1762777232964,0.0002,3593.0,3592.7,0.405504]
[1762777233158,0.0002,3593.0,3592.7,0.881404]
[1762777233561,0.0002,3593.0,3592.5,1.24288285]
[1762777233761,0.0002,3593.0,3592.7,0.405504]
[1762777235453,0.0002,3593.0,3592.9,0.4512]
[1762777236033,0.0002,3593.0,3592.9,0.7104316]
[1762777237471,0.0002,3593.0,3592.9,1.1159356]
[1762777237662,0.0002,3593.0,3592.9,1.5918356]
[1762777238385,0.0002,3593.0,3592.9,5.2847426]
[1762777238693,0.0002,3593.0,3592.9,6.17323705]
[1762777238867,0.0002,3593.0,3592.9,6.5444546]
[1762777239070,0.0002,3593.0,3592.9,6.95823472]
[1762777239840,0.0002,3593.0,3592.9,3.66437793]
[1762777240091,0.0002,3593.0,3592.9,3.99538403]
[1762777240390,0.0002,3593.0,3592.9,3.66437793]
[1762777240944,0.0002,3593.0,3592.9,2.77469781]
[1762777241145,0.0002,3593.0,3592.9,3.8786476]
[1762777242056,0.0002,3593.0,3592.9,4.3545476]
[1762777242294,0.0002,3593.0,3592.9,3.8786476]
[1762777242895,0.0002,3593.0,3592.9,4.3545476]
[1762777244382,0.0002,3593.0,3592.9,2.8515476]
[1762777244675,0.0002,3593.0,3592.9,1.9244476]
[1762777244980,0.0002,3593.0,3592.9,1.665216]
[1762777245183,0.2117,3593.0,3592.9,1.259712]
[1762777246177,2.99488953,3593.0,3592.9,1.259712]
[1762777246377,2.78340256,3592.8,3592.5,0.002]
[1762777246582,0.1555,3592.6,3592.5,0.002]
[1762777248274,0.1547,3592.6,3592.5,0.002]
[1762777248661,3.14889941,3592.6,3592.5,0.002]
[1762777248976,0.1547,3592.6,3592.5,0.002]
[1762777250583,2.93819941,3592.6,3592.5,0.002]
[1762777250883,3.14889941,3592.6,3592.5,0.002]
[1762777251482,0.3654,3592.6,3592.5,0.002]
[1762777251782,3.14889941,3592.6,3592.5,0.002]
[1762777253692,3.5314239,3592.6,3592.5,0.002]
[1762777253987,3.7421239,3592.6,3592.5,0.002]
[1762777254383,0.95862449,3592.6,3592.5,0.002]
[1762777254767,3.7421239,3592.6,3592.5,0.002]
[1762777255585,0.1547,3592.6,3592.5,0.002]
[1762777259867,0.0002,3593.0,3592.5,0.9538]
[1762777260190,3.0408952,3592.9,3592.6,0.4788]
[1762777260391,3.0408952,3592.9,3592.5,0.475]
[1762777260392,0.2107,3592.6,3592.5,0.002]
[1762777262175,2.78335835,3592.8,3592.5,0.002]
[1762777262489,2.78329568,3592.9,3592.5,0.002]
[1762777262689,2.78328111,3592.9,3592.5,0.002]
[1762777262895,0.0002,3593.0,3592.5,0.002]
[1762777263208,2.78328036,3592.9,3592.5,0.002]
[1762777263363,0.0002,3593.0,3592.5,0.002]
[1762777263556,2.78339694,3592.8,3592.5,0.002]
[1762777263970,0.0002,3593.0,3592.5,0.002]
[1762777264171,0.0002,3593.0,3592.5,0.40105021]
[1762777264501,2.78327442,3592.9,3592.5,0.40105021]
[1762777264694,2.7834189,3593.0,3592.5,0.40105021]
[1762777264993,0.0002,3593.0,3592.6,0.473]
[1762777265198,2.78342794,3593.0,3592.5,4.24105021]
[1762777265402,0.0002,3593.0,3592.6,0.473]
[1762777265791,2.78339427,3593.0,3592.6,0.473]
[1762777265968,0.0002,3593.0,3592.6,0.473]
[1762777266914,0.0002,3593.0,3592.6,0.51195542]
[1762777267115,0.0002,3593.0,3592.9,0.4788]
[1762777267514,0.0002,3593.0,3592.7,0.473]
[1762777267828,0.0002,3593.0,3592.9,0.4788]
[1762777268017,0.0002,3593.0,3592.9,2.144016]
[1762777268164,0.0002,3593.0,3592.9,4.54510341]
[1762777270783,0.0002,3593.0,3592.9,2.17013433]
[1762777270990,0.0002,3593.0,3592.9,2.19796699]
[1762777271185,0.0002,3593.0,3592.9,2.17013433]
[1762777271589,0.0002,3593.0,3592.9,3.67313433]
[1762777272297,0.0004,3593.4,3593.3,1.069104]
[1762777272501,0.0004,3593.4,3593.3,1.77332795]
[1762777272671,0.0004,3593.4,3593.3,2.24632795]
[1762777273506,0.0004,3593.4,3593.3,2.66010807]
[1762777275462,0.0004,3593.4,3593.3,7.77982007]
[1762777284909,0.0004,3593.4,3593.3,12.30158301]
[1762777286624,0.0004,3593.4,3593.3,7.77982007]
[1762777286820,0.0004,3593.4,3593.3,8.82927942]
[1762777287530,0.0004,3593.4,3593.3,9.1517844]
[1762777288174,0.0004,3593.4,3593.3,8.35627942]
[1762777288470,0.0004,3593.4,3593.3,9.20316773]
[1762777290139,0.0004,3593.4,3593.3,7.21186773]
[1762777290344,0.0004,3593.4,3593.3,9.20316773]
[1762777293910,0.0004,3593.4,3593.3,8.85643521]
[1762777294130,0.0004,3593.4,3593.3,8.36713521]
[1762777294431,0.0004,3593.4,3593.3,7.3459469]
[1762777294728,0.0004,3593.4,3593.3,5.8439469]
[1762777295092,0.0004,3593.4,3593.3,6.3028469]
[1762777295281,0.0004,3593.4,3593.3,7.53180106]
[1762777296307,0.0006,3593.8,3593.4,0.405504]
[1762777296508,0.0006,3593.8,3593.6,0.405504]
[1762777296893,0.2107,3593.7,3593.6,0.76309231]
[1762777297077,0.2107,3593.7,3593.6,0.405504]
[1762777297318,0.2107,3593.7,3593.3,5.4384429]
[1762777297615,0.0006,3593.8,3593.4,0.405504]
[1762777297616,0.1563,3593.6,3593.4,0.405504]
[1762777297817,0.1563,3593.6,3593.4,1.24428752]
[1762777298023,0.0006,3593.8,3593.5,0.35758831]
[1762777298690,0.0006,3593.8,3593.5,0.73965416]
[1762777298916,0.0006,3593.8,3593.6,0.38206585]
[1762777299212,0.0006,3593.8,3593.7,0.35758831]
[1762777299425,0.0006,3593.8,3593.7,0.73965416]
[1762777299715,0.422,3593.8,3593.7,0.73965416]
[1762777299883,0.422,3593.8,3593.7,4.59965416]
[1762777300213,0.2113,3593.8,3593.7,5.85936616]
[1762777301825,0.422,3593.8,3593.7,5.119712]
[1762777302317,0.2113,3593.8,3593.7,5.47730031]
[1762777302522,0.0006,3593.8,3593.7,6.93702894]
[1762777303022,0.0006,3593.8,3593.7,7.39592894]
[1762777303234,0.0006,3593.8,3593.7,6.93702894]
[1762777304230,0.0006,3593.8,3593.7,7.39592894]
[1762777304537,0.0006,3593.8,3593.7,6.19737478]
[1762777305041,0.0006,3593.8,3593.7,2.39241138]
[1762777305407,0.0006,3593.8,3593.7,1.7202526]
[1762777308145,0.2113,3593.8,3593.7,1.7202526]
[1762777308735,0.2113,3593.8,3593.7,6.8399646]
[1762777309743,0.0006,3593.8,3593.7,6.8399646]
[1762777311536,0.2113,3593.8,3593.7,6.8399646]
[1762777311723,0.2113,3593.8,3593.7,7.23046958]
[1762777311918,0.0006,3593.8,3593.7,7.23046958]
[1762777312318,0.0006,3593.8,3593.7,8.17866958]
[1762777313016,0.0006,3593.8,3593.7,7.68936958]
[1762777313217,0.2113,3593.8,3593.7,7.23046958]
[1762777314421,0.2113,3593.8,3593.7,6.8399646]
[1762777314942,0.2113,3593.8,3593.7,7.23046958]
[1762777315251,0.2113,3593.8,3593.7,2.96496558]
[1762777315465,0.2113,3593.8,3593.7,1.3147486]
[1762777315466,6.75705276,3593.8,3593.7,1.3147486]
[1762777319217,6.54635276,3593.8,3593.7,1.3147486]
[1762777319421,10.05116426,3593.8,3593.7,1.3147486]
[1762777320234,10.05036426,3593.8,3593.7,1.3147486]
[1762777320836,2.78264741,3593.7,3593.6,0.002]
[1762777321048,3.40781869,3593.7,3593.6,0.002]
[1762777321568,6.07730103,3593.0,3592.9,0.002]
[1762777321727,6.49257231,3593.0,3592.9,0.002]
[1762777321954,6.70307231,3593.0,3592.9,0.002]
[1762777325478,3.19846081,3593.0,3592.9,0.002]
[1762777325861,3.40896081,3593.0,3592.9,0.002]
[1762777326460,6.70307231,3593.0,3592.9,0.002]
[1762777328775,6.49257231,3593.0,3592.9,0.002]
[1762777328959,9.99718381,3593.0,3592.9,0.002]
[1762777329270,6.70307231,3593.0,3592.9,0.002]
[1762777329697,6.70144319,3593.0,3592.9,0.002]
[1762777330275,9.99555469,3593.0,3592.9,0.002]
[1762777330955,10.10685798,3593.0,3592.9,0.002]
[1762777331640,2.78342193,3592.7,3592.6,0.002]
[1762777331840,6.75425843,3592.7,3592.6,0.002]
[1762777332380,6.86568788,3592.7,3592.6,0.002]
[1762777333372,8.12539988,3592.7,3592.6,0.002]
[1762777333685,2.78373187,3592.3,3592.2,0.002]
[1762777334006,9.83767987,3592.3,3592.2,0.002]
[1762777334165,10.04817987,3592.3,3592.2,0.002]
[1762777334365,10.15961957,3592.3,3592.2,0.002]
[1762777335178,2.78380936,3592.2,3591.6,0.002]
[1762777335366,4.66854636,3592.2,3591.6,0.002]
[1762777335801,2.78388686,3592.1,3591.6,0.002]
[1762777336006,10.04783486,3592.1,3591.6,0.002]
[1762777339089,2.94244187,3591.9,3591.8,1e-08]
[1762777339314,2.784507,3591.3,3591.2,0.002]
[1762777339533,3.248732,3591.3,3591.2,0.002]
[1762777339681,3.459232,3591.3,3591.2,0.002]
[1762777340113,6.7533435,3591.3,3591.2,0.002]
[1762777340319,10.047455,3591.3,3591.2,0.002]
[1762777341918,6.7533435,3591.3,3591.2,0.002]
[1762777344187,6.7525435,3591.3,3591.2,0.002]
[1762777344419,6.7525435,3591.3,3590.1,0.01]
[1762777344420,2.78536014,3590.2,3590.1,0.01]
[1762777344657,6.54659664,3590.2,3590.1,0.01]
[1762777344802,9.84070814,3590.2,3590.1,0.01]
[1762777344999,6.54659664,3590.2,3590.1,0.01]
[1762777346916,6.33609664,3590.2,3590.1,0.4986]
[1762777347521,6.33609664,3590.2,3590.1,1.1648]
[1762777347522,3.04198514,3590.2,3590.1,1.1648]
[1762777348032,3.04198514,3590.2,3590.1,0.4986]
[1762777349158,3.04198514,3590.2,3590.1,0.9765]
[1762777350354,0.256625,3590.2,3590.1,2.641716]
[1762777350667,3.2941115,3591.5,3590.1,6.12441684]
[1762777350829,3.2941115,3591.5,3590.9,0.4886]
[1762777351013,3.2941115,3591.5,3591.4,0.4886]
[1762777351214,3.2941115,3591.5,3590.5,0.405504]
[1762777351428,2.78493983,3590.8,3590.3,0.4779]
[1762777351652,2.7848047,3591.0,3590.3,0.4779]
[1762777351862,3.2941115,3591.4,3590.9,0.4886]
[1762777352181,3.2941115,3591.4,3591.3,0.4886]
[1762777352182,6.07854097,3591.4,3591.3,0.4886]
[1762777352554,6.07854097,3591.4,3591.0,0.4779]
[1762777352555,2.78458453,3591.2,3591.1,0.1883]
[1762777352759,2.78458453,3591.2,3590.2,1.259712]
[1762777352988,2.78497228,3590.7,3590.3,1.07725161]
[1762777353141,2.78519623,3590.5,3590.3,0.4779]
[1762777353352,2.78520499,3590.4,3590.3,0.4779]
[1762777353972,2.78520499,3590.4,3590.3,0.9665]
[1762777355465,2.78520499,3590.4,3590.3,0.4886]
[1762777356646,3.2941115,3591.0,3590.3,0.9665]
[1762777356853,2.78481717,3590.9,3590.5,0.4886]
[1762777357281,2.78481717,3590.9,3590.5,0.9665]
[1762777357654,2.78504985,3590.6,3590.5,0.4886]
[1762777357878,2.78528256,3590.3,3590.2,0.4779]
[1762777358251,2.78528256,3590.3,3590.2,0.9665]
[1762777358579,2.78523441,3590.4,3590.2,0.9665]
[1762777358780,2.78523441,3590.4,3590.3,0.4779]
[1762777358981,2.78523441,3590.4,3590.3,0.9665]
[1762777359701,3.2941115,3590.8,3590.3,0.9665]
[1762777359867,2.78497228,3590.7,3590.5,0.4886]
[1762777360069,2.78504985,3590.6,3590.5,0.4886]
[1762777362191,2.78504985,3590.6,3590.5,0.9665]
[1762777362690,3.04194392,3590.6,3590.5,0.9665]
[1762777362894,0.25689407,3590.6,3590.5,0.9665]
[1762777363997,0.25689407,3590.6,3590.5,1.372004]
[1762777364198,0.25689407,3590.6,3590.5,2.631716]
[1762777364497,0.25689407,3590.6,3590.5,4.0992125]
[1762777364683,0.001,3591.6,3590.6,0.405504]
[1762777364891,0.001,3591.6,3591.5,0.6769]
[1762777365189,0.001,3591.6,3591.5,1.082404]
[1762777365360,0.001,3591.6,3591.5,1.560304]
[1762777365560,0.001,3591.6,3591.5,1.95371829]
[1762777368272,0.0002,3591.6,3591.5,1.95371829]
[1762777368708,0.0002,3591.6,3591.5,3.21343029]
[1762777369311,0.0002,3591.6,3591.5,1.95371829]
[1762777369914,0.0002,3591.6,3591.5,5.73371829]
[1762777370784,0.0002,3591.6,3591.5,1.95371829]
[1762777371015,0.0002,3591.6,3591.5,1.54821429]
[1762777371311,0.0002,3591.6,3591.5,1.560304]
[1762777373298,0.0002,3591.6,3591.5,0.6769]
[1762777373487,0.0002,3591.6,3591.5,1.1548]
[1762777374511,2.78447441,3591.6,3591.5,0.4886]
[1762777374887,2.78455131,3591.3,3590.8,0.4964]
[1762777375080,2.78455131,3591.3,3590.8,1.38286338]
[1762777375280,2.78455131,3591.3,3590.9,0.405504]
[1762777375481,2.78459367,3591.2,3590.9,0.860204]
[1762777375979,2.78459367,3591.2,3591.1,0.4674]
[1762777376977,2.7846786,3591.1,3590.8,0.405504]
[1762777377189,0.0822,3591.2,3590.8,0.4547]
[1762777377422,3.25142947,3591.4,3590.5,0.4674]
[1762777377716,2.78489985,3590.8,3590.5,0.405504]
[1762777378034,3.25142947,3591.4,3590.2,0.83586996]
[1762777378035,0.467,3591.4,3590.2,0.83586996]
[1762777378183,2.78499618,3590.7,3590.2,0.4547]
[1762777378519,2.78499618,3590.7,3590.3,0.4547]
[1762777378715,2.78492157,3590.8,3590.6,0.4674]
[1762777378921,3.65163514,3591.5,3590.6,0.4674]
[1762777379118,2.78489473,3590.8,3590.7,0.4674]
[1762777381498,2.78489473,3590.8,3590.1,0.417504]
[1762777381815,0.0822,3590.8,3590.1,0.417504]
[1762777381982,2.78489473,3590.8,3590.7,0.4674]
[1762777382217,2.78498636,3590.7,3590.2,0.8103816]
[1762777382545,0.467,3591.2,3590.3,0.4547]
[1762777382546,2.78505493,3590.6,3590.3,0.4547]
[1762777382950,2.78503264,3590.7,3590.3,0.4547]
[1762777383245,0.62719856,3591.5,3590.5,0.4674]
[1762777383410,2.78484719,3590.9,3590.6,0.4674]
[1762777383604,2.78477157,3591.0,3590.6,0.4674]
[1762777383944,2.78477157,3591.0,3590.8,0.4674]
[1762777384711,0.0002,3591.6,3590.9,0.4674]
[1762777384942,0.25650403,3591.5,3590.2,0.3556816]
[1762777385147,2.78470603,3591.1,3590.5,0.405504]
[1762777385349,2.78474224,3591.0,3590.5,0.405504]
[1762777385660,2.78471964,3591.1,3590.6,0.4547]
[1762777385971,2.78473962,3591.0,3590.9,0.4674]
[1762777386654,2.78490193,3590.8,3590.6,0.4547]
[1762777386946,0.1985,3590.7,3590.2,0.3556816]
[1762777387259,3.49143658,3591.3,3590.2,0.3556816]
[1762777387260,3.49143658,3591.3,3590.3,0.83203936]
[1762777387433,2.78497245,3590.7,3590.3,0.83203936]
[1762777387633,2.78458453,3591.2,3590.3,0.83203936]
[1762777387857,2.7850841,3590.6,3590.3,0.4547]
[1762777388319,2.78514086,3590.5,3590.3,0.4547]
[1762777388724,2.78498616,3590.7,3590.1,0.012]
[1762777388725,2.78536014,3590.2,3590.1,0.012]
[1762777388947,2.78996014,3590.2,3590.1,0.012]
[1762777389470,3.34748357,3590.2,3590.1,0.012]
[1762777389623,3.81448357,3590.2,3590.1,0.012]
[1762777390055,3.25696014,3590.2,3590.1,0.012]
[1762777390932,3.51350547,3590.2,3590.1,0.012]
[1762777392255,2.78559291,3589.9,3589.8,0.002]
[1762777392461,3.60613824,3589.9,3589.8,0.002]
[1762777392663,3.69653824,3589.9,3589.8,0.002]
[1762777393074,3.69626611,3589.9,3589.8,0.002]
[1762777399349,3.60514512,3589.9,3589.8,0.002]
[1762777399550,3.69554512,3589.9,3589.8,0.002]
[1762777400389,3.69554478,3589.9,3589.8,0.002]
[1762777400747,3.60514478,3589.9,3589.8,0.002]
[1762777401473,3.69554478,3589.9,3589.8,0.002]
[1762777401779,3.60514478,3589.9,3589.8,0.002]
[1762777401965,3.24429291,3589.9,3589.8,0.002]
[1762777402375,3.50000332,3589.9,3589.8,0.002]
[1762777402573,2.78559291,3589.9,3589.8,0.4694]
[1762777403084,3.24429291,3589.9,3589.8,0.002]
[1762777403583,2.78559291,3589.9,3589.8,0.4694]
[1762777403900,2.78504985,3590.6,3589.8,0.9241]
[1762777404048,2.78550943,3590.1,3590.0,0.4674]
[1762777405452,2.78559291,3589.9,3589.8,0.002]
[1762777405993,2.78559291,3589.9,3589.8,0.4578]
[1762777406187,2.78559291,3589.9,3589.8,0.923]
[1762777407571,2.78559291,3589.9,3589.8,0.4578]
[1762777408401,2.78559291,3589.9,3589.8,0.923]
[1762777408771,2.78559291,3589.9,3589.8,0.4578]
[1762777409085,2.78559291,3589.9,3589.8,0.923]
[1762777409283,2.78559291,3589.9,3589.8,0.4578]
[1762777409604,2.78559291,3589.9,3589.8,0.923]
[1762777410521,2.78554128,3590.0,3589.8,0.923]
[1762777410809,2.7865072,3590.1,3590.0,0.4558]
[1762777411183,2.78559291,3589.9,3589.8,0.002]
[1762777412910,2.88279291,3589.9,3589.8,0.002]
[1762777414777,2.78559291,3589.9,3589.8,0.002]
[1762777416057,6.2715588,3589.9,3589.8,0.002]
[1762777416175,6.7190588,3589.9,3589.8,0.002]
[1762777416777,6.71914428,3589.9,3589.8,0.002]
[1762777421666,6.27084428,3589.9,3589.8,0.002]
[1762777421829,3.04164725,3589.9,3589.8,0.4578]
[1762777422228,6.53534428,3589.9,3589.8,0.002]
[1762777422941,6.81113378,3589.9,3589.8,0.002]
[1762777425019,6.81213378,3589.9,3589.8,0.002]
[1762777426149,6.34513378,3589.9,3589.8,0.4578]
[1762777429351,6.34513378,3589.9,3589.8,0.923]
[1762777429731,6.34513378,3589.9,3589.8,0.4578]
[1762777431151,3.04264725,3589.9,3589.8,0.4578]
[1762777431351,6.34513378,3589.9,3589.8,0.4578]
[1762777432656,6.54393378,3589.9,3589.8,0.002]
[1762777433316,6.34513378,3589.9,3589.8,0.002]
[1762777433521,6.34513378,3589.9,3589.8,0.4853]
[1762777433750,6.34513378,3589.9,3589.8,0.9513]
[1762777435461,6.34513378,3589.9,3589.8,0.4853]
[1762777437159,6.34513378,3589.9,3589.8,0.9645]
[1762777438155,6.34513378,3589.9,3589.8,0.4853]
[1762777440162,6.34433378,3589.9,3589.8,0.4853]
[1762777440566,6.34433378,3589.9,3589.8,0.9645]
[1762777441366,0.25785434,3589.9,3589.8,0.9645]
[1762777441667,3.04344725,3589.9,3589.8,0.9645]
[1762777442022,0.25785434,3589.9,3589.8,0.9645]
[1762777442266,0.001,3589.9,3589.8,0.9645]
[1762777442689,0.001,3589.9,3589.8,1.370004]
[1762777442895,0.001,3589.9,3589.8,1.6608323]
[1762777443046,0.001,3590.1,3589.9,0.405504]
[1762777443245,0.001,3590.1,3590.0,0.878504]
[1762777443450,0.001,3590.1,3590.0,1.357704]
[1762777447381,0.001,3590.1,3590.0,5.91990253]
[1762777447552,0.001,3590.1,3590.0,6.53838994]